fUSD/lending_fUSD_20250305
["ID","MTS","AMOUNT","RATE_DAILY","PERIOD"]
[355461063,1741187445821,-521.37,0.00011094,2]
[355461066,1741187445830,-705.0,0.00011094,2]
[355461069,1741187445840,-896.22,0.00011094,2]
[355461072,1741187445850,-1706.8,0.00011094,2]
[355461075,1741187445860,-500.0,0.00011094,2]
[355461078,1741187445869,-589.15,0.00011094,2]
[355461081,1741187445878,-1197.4,0.00011094,2]
[355461084,1741187445888,-2354.22,0.00011094,2]
[355461086,1741187445898,-1340.1,0.00011094,2]
[355461088,1741187445907,-919.23,0.00011094,2]
[355461090,1741187445917,-577.59,0.00011094,2]
[355461092,1741187445929,-500.0,0.00011094,2]
[355461094,1741187445939,-785.06,0.00011094,2]
[355461096,1741187445949,-815.6,0.00011094,2]
[355461098,1741187445959,-864.71,0.00011094,2]
[355461100,1741187445969,-492.11149368,0.00011094,2]
[355461102,1741187445981,-1715.49,0.00011094,2]
[355461104,1741187445990,-503.55,0.00011094,2]
[355461106,1741187445999,-500.0,0.00011094,2]
[355461108,1741187446009,-500.0,0.00011094,2]
[355461110,1741187446019,-500.0,0.00011094,2]
[355461112,1741187446029,-1135.17,0.00011094,2]
[355461114,1741187446039,-1734.38,0.00011094,2]
[355461116,1741187446048,-189.59037712,0.00011094,2]
[355461118,1741187446060,-1016.25,0.00011094,2]
[355461120,1741187446070,-500.0,0.00011094,2]
[355461122,1741187446080,-630.41,0.00011094,2]
[355461124,1741187446089,-711.48,0.00011094,2]
[355461126,1741187446099,-1017.53,0.00011094,2]
[355461128,1741187446108,-1446.01,0.00011094,2]
[355461130,1741187446117,-500.0,0.00011094,2]
[355461132,1741187446127,-702.65,0.00011094,2]
[355461134,1741187446137,-1713.61,0.00011094,2]
[355461136,1741187446146,-4929.78,0.00011094,2]
[355461138,1741187446155,-500.0,0.00011094,2]
[355461140,1741187446164,-1755.13,0.00011094,2]
[355461142,1741187446175,-613.68919851,0.00011094,2]
[355461144,1741187446185,-500.0,0.00011094,2]
[355461147,1741187446194,-894.49,0.00011094,2]
[355461149,1741187446204,-606.46,0.00011094,2]
[355461151,1741187446213,-500.0,0.00011094,2]
[355461153,1741187446222,-974.75,0.00011094,2]
[355461155,1741187446231,-500.0,0.00011094,2]
[355461157,1741187446241,-1703.74,0.00011094,2]
[355461159,1741187446250,-500.0,0.00011094,2]
[355461161,1741187446259,-500.0,0.00011094,2]
[355461163,1741187446273,-500.0,0.00011094,2]
[355461165,1741187446283,-500.0,0.00011094,2]
[355461167,1741187446292,-187.04078694,0.00011094,2]
[355461169,1741187446302,-988.46,0.00011094,2]
[355461171,1741187446311,-500.0,0.00011094,2]
[355461173,1741187446322,-501.69859071,0.00011094,2]
[355461175,1741187446332,-500.0,0.00011094,2]
[355461177,1741187446341,-5899.63,0.00011094,2]
[355461180,1741187446352,-500.0,0.00011094,2]
[355461182,1741187446363,-2043.47,0.00011094,2]
[355461184,1741187446373,-500.0,0.00011094,2]
[355461186,1741187446383,-1008.22,0.00011094,2]
[355461188,1741187446393,-500.0,0.00011094,2]
[355461190,1741187446403,-547.77,0.00011094,2]
[355461192,1741187446412,-500.0,0.00011094,2]
[355461193,1741187446424,-500.0,0.00011094,2]
[355461195,1741187446434,-1794.46,0.00011094,2]
[355461197,1741187446444,-2761.33,0.00011094,2]
[355461199,1741187446454,-500.0,0.00011094,2]
[355461201,1741187446464,-1197.92,0.00011094,2]
[355461202,1741187446473,-500.0,0.00011094,2]
[355461204,1741187446483,-500.0,0.00011094,2]
[355461206,1741187446493,-1383.29,0.00011094,2]
[355461208,1741187446503,-526.23888531,0.00011094,2]
[355461210,1741187446512,-1730.31,0.00011094,2]
[355461212,1741187446522,-4779.89,0.00011094,2]
[355461214,1741187446531,-6611.77,0.00011094,2]
[355461216,1741187446540,-512.87956085,0.00011094,2]
[355461218,1741187446550,-200.00115061,0.00011094,2]
[355461220,1741187446560,-500.0,0.00011094,2]
[355461222,1741187446570,-4646.47,0.00011094,2]
[355461224,1741187446581,-2305.15,0.00011094,2]
[355461226,1741187446591,-500.0,0.00011094,2]
[355461228,1741187446600,-649.95,0.00011094,2]
[355461230,1741187446610,-23094.49,0.00011094,2]
[355461232,1741187446620,-500.0,0.00011094,2]
[355461234,1741187446630,-1585.92,0.00011094,2]
[355461236,1741187446640,-674.27,0.00011094,2]
[355461238,1741187446649,-500.0,0.00011094,2]
[355461240,1741187446659,-832.24,0.00011094,2]
[355461241,1741187446668,-500.0,0.00011094,2]
[355461243,1741187446680,-500.0,0.00011094,2]
[355461245,1741187446689,-875.95,0.00011094,2]
[355461248,1741187446699,-3224.22,0.00011094,2]
[355461249,1741187446710,-500.0,0.00011094,2]
[355461251,1741187446720,-739.5,0.00011094,2]
[355461254,1741187446730,-2147.67,0.00011094,2]
[355461255,1741187446740,-500.0,0.00011094,2]
[355461257,1741187446750,-528.69,0.00011094,2]
[355461259,1741187446759,-695.84,0.00011094,2]
[355461262,1741187446770,-1688.66,0.00011094,2]
[355461263,1741187446780,-1288.38,0.00011094,2]
[355461265,1741187446789,-500.0,0.00011094,2]
[355461267,1741187446799,-2164.23,0.00011094,2]
[355461269,1741187446809,-2074.96,0.00011094,2]
[355461271,1741187446819,-500.0,0.00011094,2]
[355461273,1741187446830,-500.0,0.00011094,2]
[355461275,1741187446840,-853.12,0.00011094,2]
[355461277,1741187446849,-2056.04,0.00011094,2]
[355461279,1741187446859,-5280.14,0.00011094,2]
[355461281,1741187446868,-3144.34610674,0.00011094,2]
[355461318,1741187447298,-274.60389326,0.00011094,2]
[355461320,1741187447308,-831.35,0.00011094,2]
[355461322,1741187447318,-500.0,0.00011094,2]
[355461324,1741187447327,-1460.43,0.00011094,2]
[355461325,1741187447337,-515.42,0.00011094,2]
[355461327,1741187447347,-618.74,0.00011094,2]
[355461329,1741187447356,-27972.4,0.00011094,2]
[355461331,1741187447366,-1235.38,0.00011094,2]
[355461334,1741187447377,-613.53,0.00011094,2]
[355461336,1741187447387,-1388.61,0.00011094,2]
[355461338,1741187447396,-500.0,0.00011094,2]
[355461340,1741187447406,-2602.23,0.00011094,2]
[355461342,1741187447416,-975.88,0.00011094,2]
[355461344,1741187447429,-2692.76,0.00011094,2]
[355461345,1741187447438,-3657.98,0.00011094,2]
[355461347,1741187447447,-567.57,0.00011094,2]
[355461350,1741187447457,-2514.66,0.00011094,2]
[355461352,1741187447468,-538.13,0.00011094,2]
[355461354,1741187447478,-3637.01,0.00011094,2]
[355461356,1741187447492,-500.0,0.00011094,2]
[355461358,1741187447502,-8665.24,0.00011094,2]
[355461360,1741187447511,-1097.09,0.00011094,2]
[355461362,1741187447522,-519.51774641,0.00011094,2]
[355461364,1741187447532,-887.0,0.00011094,2]
[355461366,1741187447542,-503.68561205,0.00011095,2]
[355461368,1741187447552,-410.68738294,0.00011095,2]
[355461370,1741187447562,-500.0,0.00011095,2]
[355461372,1741187447572,-210.49477676,0.00011095,2]
[355461374,1741187447582,-510.8847543,0.00011095,2]
[355461376,1741187447593,-504.47995964,0.00011095,2]
[355461378,1741187447603,-206.30256592,0.00011095,2]
[355461380,1741187447613,-506.69538135,0.00011095,2]
[355461381,1741187447623,-629.71512869,0.00011095,2]
[355461384,1741187447633,-316.88955215,0.00011095,2]
[355461385,1741187447643,-500.0,0.00011095,2]
[355461387,1741187447653,-500.0,0.00011095,2]
[355461390,1741187447665,-1186.13,0.00011095,2]
[355461391,1741187447677,-1136.16,0.00011095,2]
[355461394,1741187447687,-500.0,0.00011095,2]
[355461396,1741187447696,-1555.59,0.00011095,2]
[355461398,1741187447706,-500.0,0.00011095,2]
[355461400,1741187447715,-1255.33,0.00011095,2]
[355461402,1741187447725,-1196.32,0.00011095,2]
[355461403,1741187447734,-1884.18,0.00011095,2]
[355461405,1741187447744,-1598.68,0.00011095,2]
[355461408,1741187447753,-1230.94,0.00011095,2]
[355461410,1741187447766,-500.0,0.00011095,2]
[355461411,1741187447775,-1522.85,0.00011095,2]
[355461413,1741187447785,-860.41,0.00011095,2]
[355461415,1741187447795,-1048.85,0.00011095,2]
[355461417,1741187447804,-1206.24,0.00011095,2]
[355461419,1741187447816,-500.0,0.00011095,2]
[355461422,1741187447832,-1704.1,0.00011095,2]
[355461424,1741187447841,-883.7,0.00011095,2]
[355461425,1741187447851,-2836.66,0.00011095,2]
[355461427,1741187447860,-1875.21,0.00011095,2]
[355461429,1741187447870,-1862.18,0.00011095,2]
[355461431,1741187447879,-1495.0,0.00011095,2]
[355461433,1741187447888,-2074.32,0.00011095,2]
[355461435,1741187447898,-1521.13,0.00011095,2]
[355461437,1741187447907,-639.36,0.00011095,2]
[355461439,1741187447917,-2153.05,0.00011095,2]
[355461441,1741187447929,-1729.73,0.00011095,2]
[355461444,1741187447939,-2941.12,0.00011095,2]
[355461445,1741187447948,-2732.13,0.00011095,2]
[355461448,1741187447958,-5633.18,0.00011095,2]
[355461449,1741187447968,-3255.53973,0.00011095,2]
[355461452,1741187447981,-1870.71,0.00011095,2]
[355461453,1741187447990,-1129.67,0.00011095,2]
[355461456,1741187448001,-5558.28,0.00011095,2]
[355461458,1741187448015,-3144.58,0.00011095,2]
[355461460,1741187448027,-1395.84,0.00011095,2]
[355461462,1741187448039,-4345.77,0.00011095,2]
[355461464,1741187448050,-3610.77,0.00011095,2]
[355461466,1741187448061,-1773.88,0.00011095,2]
[355461468,1741187448071,-832.81,0.00011095,2]
[355461470,1741187448082,-2552.69,0.00011095,2]
[355461472,1741187448092,-2348.0,0.00011095,2]
[355461474,1741187448103,-789.14,0.00011095,2]
[355461476,1741187448112,-959.38,0.00011095,2]
[355461478,1741187448122,-500.0,0.00011095,2]
[355461480,1741187448132,-2303.06,0.00011095,2]
[355461481,1741187448141,-5155.8,0.00011095,2]
[355461483,1741187448151,-4611.86,0.00011095,2]
[355461486,1741187448161,-527.46,0.00011095,2]
[355461488,1741187448173,-4513.03,0.00011095,2]
[355461489,1741187448182,-1468.6,0.00011095,2]
[355461492,1741187448192,-158.0,0.00011095,3]
[355461493,1741187448202,-947.27,0.00011096,2]
[355461496,1741187448212,-1067.88164996,0.00011099,2]
[355461497,1741187448221,-1067.8816499,0.00011099,2]
[355461499,1741187448231,-171.868,0.00011099,2]
[355461501,1741187448240,-171.868,0.00011099,2]
[355461503,1741187448250,-440.44163547,0.00011099,2]
[355461505,1741187448260,-440.44163539,0.00011099,2]
[355461508,1741187448270,-7972.176427,0.00011099,2]
[355461509,1741187448280,-20576.4496458,0.00011138,2]
[355461512,1741187448300,-9160.54051025,0.00011138,2]
[355461640,1741187449657,-1840.64,0.00011138,2]
[355461645,1741187449700,-95552.85220064,0.00011138,2]
[355461647,1741187449710,-15438.73979388,0.00011138,2]
[355461712,1741187450369,-500.0,0.00011094,2]
[355461714,1741187450379,-3004.30950812,0.00011138,2]
[355461716,1741187450390,-477.20332121,0.00011138,2]
[355461719,1741187450403,-76891.23836489,0.00011138,2]
[355461721,1741187450412,-176.08063103,0.00011153,2]
[355461723,1741187450422,-786.0,0.00011172,2]
[355461724,1741187450432,-907.0,0.00011172,2]
[355461726,1741187450441,-1270.0,0.00011172,2]
[355461728,1741187450451,-1427.0,0.00011172,2]
[355461730,1741187450460,-541.0,0.00011172,2]
[355461732,1741187450470,-4041.0,0.00011172,2]
[355461734,1741187450479,-1067.8816499,0.00011177,2]
[355461736,1741187450489,-440.44163539,0.00011177,2]
[355461738,1741187450499,-3930.0,0.00011194,2]
[355461740,1741187450508,-150.0,0.00011194,2]
[355461742,1741187450517,-1012.0,0.00011194,2]
[355461744,1741187450526,-12854.75771896,0.0001126,2]
[355461746,1741187450538,-2237.8167,0.0001126,2]
[355461752,1741187450587,-343.49833086,0.0001126,2]
[355461754,1741187450598,-3270.64652191,0.0001126,2]
[355462560,1741187664233,908.95,0.00014,30]
[355462561,1741187719302,154.01,0.00010118,2]
[355462562,1741187719381,154.01,0.00010176,2]
[355462563,1741187719493,154.01,0.00010233,2]
[355462564,1741187724213,1000.0,9.756e-05,2]
[355462566,1741187864699,344.2386,9.756e-05,2]
[355462567,1741187864725,555.7614,9.756e-05,2]
[355462568,1741187883204,234.67,0.00010057,2]
[355462569,1741188110461,164.27,0.00010034,2]
[355462570,1741188142768,312.01,0.00010015,2]
[355462571,1741188296540,1000.0,0.00010045,2]
[355462572,1741188358101,1379.61,8.219e-05,2]
[355462576,1741188496530,250.0,9.992e-05,2]
[355462587,1741188631853,-154.01,0.00010291,2]
[355462588,1741188631863,-550.0,0.00010306,2]
[355462589,1741188631873,-150.0,0.0001032,7]
[355462591,1741188631883,-154.01,0.00010349,2]
[355462593,1741188631893,-29.1595617,0.00010407,2]
[355462596,1741188631964,-124.8504383,0.00010407,2]
[355462597,1741188631972,-154.01,0.00010465,2]
[355462598,1741188631982,-1285.30279007,0.00010478,2]
[355462599,1741188631992,-94.30720993,0.00010478,2]
[355462600,1741188632000,-154.01,0.00010522,2]
[355462601,1741188632009,-154.01,0.0001058,2]
[355462602,1741188632019,-154.01,0.00010638,2]
[355462603,1741188632029,-154.01,0.00010696,2]
[355462604,1741188632038,-154.01,0.00010754,2]
[355462605,1741188632048,-154.01,0.00010811,2]
[355462606,1741188632058,-1700.0,0.00010852,2]
[355462607,1741188632068,-154.01,0.00010869,2]
[355462608,1741188632077,-154.01,0.00010927,2]
[355462609,1741188632087,-11711.9887,0.00010993,2]
[355462610,1741188632097,-629.6517,0.00010993,2]
[355462611,1741188632106,-2500.0,0.00010993,2]
[355462612,1741188632116,-314.21320797,0.00010993,2]
[355462613,1741188632126,-150.0,0.00010993,2]
[355462614,1741188632136,-387.78735162,0.00010994,2]
[355462615,1741188632146,-5000.0,0.00010994,2]
[355462616,1741188632156,-550.0,0.00011,2]
[355462617,1741188632166,-200.0,0.00011,2]
[355462618,1741188632175,-200.0,0.00011,2]
[355462619,1741188632189,-198.0,0.00011,2]
[355462620,1741188632198,-198.0,0.00011,2]
[355462621,1741188632208,-195.0,0.00011,3]
[355462622,1741188632218,-387.78735162,0.00011006,2]
[355462623,1741188632228,-387.78735162,0.00011028,2]
[355462624,1741188632238,-161.8777062,0.00011034,2]
[355462625,1741188632248,-200.0,0.00011038,2]
[355462626,1741188632258,-200.0,0.00011066,2]
[355462627,1741188632267,-164.20655937,0.00011073,2]
[355462628,1741188632277,-160.23382729,0.00011073,2]
[355462629,1741188632287,-500.0,0.00011073,2]
[355462630,1741188632296,-160.6097999,0.00011073,2]
[355462631,1741188632305,-160.23383279,0.00011073,2]
[355462632,1741188632315,-500.0,0.00011073,2]
[355462633,1741188632325,-500.0,0.00011073,2]
[355462634,1741188632334,-693.28488955,0.00011091,2]
[355462635,1741188632343,-298.7217127,0.00011091,2]
[355462637,1741188632353,-500.0,0.00011091,2]
[355462639,1741188632362,-500.0,0.00011091,2]
[355462641,1741188632376,-500.0,0.00011091,2]
[355462643,1741188632386,-362.77116651,0.00011091,2]
[355462645,1741188632395,-500.0,0.00011092,2]
[355462647,1741188632404,-511.49390128,0.00011092,2]
[355462649,1741188632415,-537.59,0.00011092,2]
[355462651,1741188632424,-630.65,0.00011092,2]
[355462653,1741188632438,-775.48,0.00011092,2]
[355462655,1741188632449,-500.0,0.00011092,2]
[355462656,1741188632459,-500.0,0.00011092,2]
[355462659,1741188632469,-905.45,0.00011092,2]
[355462660,1741188632479,-392.51554355,0.00011092,2]
[355462662,1741188632488,-500.0,0.00011092,2]
[355462665,1741188632499,-981.24,0.00011092,2]
[355462667,1741188632509,-556.49,0.00011092,2]
[355462668,1741188632518,-500.0,0.00011092,2]
[355462670,1741188632528,-500.0,0.00011092,2]
[355462673,1741188632538,-500.0,0.00011092,2]
[355462674,1741188632548,-517.58,0.00011092,2]
[355462676,1741188632557,-500.0,0.00011092,2]
[355462679,1741188632567,-500.0,0.00011092,2]
[355462681,1741188632577,-500.0,0.00011092,2]
[355462683,1741188632587,-560.15,0.00011092,2]
[355462685,1741188632596,-500.0,0.00011092,2]
[355462687,1741188632606,-736.99,0.00011092,2]
[355462688,1741188632616,-500.0,0.00011092,2]
[355462690,1741188632625,-500.0,0.00011092,2]
[355462692,1741188632636,-784.74,0.00011092,2]
[355462695,1741188632645,-500.0,0.00011092,2]
[355462696,1741188632655,-500.0,0.00011092,2]
[355462698,1741188632665,-802.64,0.00011092,2]
[355462700,1741188632674,-500.0,0.00011092,2]
[355462702,1741188632689,-500.0,0.00011092,2]
[355462705,1741188632698,-806.3,0.00011092,2]
[355462707,1741188632708,-500.0,0.00011092,2]
[355462708,1741188632717,-500.0,0.00011092,2]
[355462711,1741188632727,-500.0,0.00011092,2]
[355462713,1741188632736,-536.05,0.00011092,2]
[355462715,1741188632746,-580.852151,0.00011092,2]
[355462717,1741188632755,-153.287909,0.00011092,2]
[355462719,1741188632765,-500.0,0.00011092,2]
[355462721,1741188632775,-150.369306,0.00011092,2]
[355462723,1741188632785,-500.0,0.00011092,2]
[355462725,1741188632795,-500.0,0.00011092,2]
[355462727,1741188632805,-944.0,0.00011092,2]
[355462729,1741188632815,-500.0,0.00011092,2]
[355462731,1741188632825,-500.0,0.00011092,2]
[355462733,1741188632835,-1173.01,0.00011092,2]
[355462735,1741188632844,-500.0,0.00011092,2]
[355462737,1741188632853,-500.0,0.00011092,2]
[355462739,1741188632863,-372.57202,0.00011092,2]
[355462741,1741188632873,-662.46,0.00011092,2]
[355462743,1741188632882,-500.0,0.00011092,2]
[355462745,1741188632892,-500.0,0.00011092,2]
[355462747,1741188632901,-1009.48,0.00011092,2]
[355462749,1741188632911,-500.0,0.00011092,2]
[355462751,1741188632921,-500.0,0.00011092,2]
[355462753,1741188632932,-1328.76,0.00011092,2]
[355462755,1741188632942,-500.0,0.00011092,2]
[355462757,1741188632953,-511.13,0.00011092,2]
[355462759,1741188632962,-656.55,0.00011092,2]
[355462761,1741188632972,-500.0,0.00011092,2]
[355462763,1741188632982,-500.0,0.00011092,2]
[355462765,1741188632991,-500.0,0.00011092,2]
[355462767,1741188633001,-568.93,0.00011092,2]
[355462769,1741188633011,-500.0,0.00011092,2]
[355462771,1741188633021,-500.0,0.00011092,2]
[355462773,1741188633032,-1124.49,0.00011092,2]
[355462775,1741188633042,-520.9789099,0.00011092,2]
[355462777,1741188633052,-855.49,0.00011092,2]
[355462779,1741188633062,-500.0,0.00011092,2]
[355462781,1741188633072,-500.0,0.00011092,2]
[355462782,1741188633082,-522.91,0.00011092,2]
[355462784,1741188633091,-500.0,0.00011092,2]
[355462786,1741188633101,-1109.03,0.00011092,2]
[355462788,1741188633111,-500.0,0.00011092,2]
[355462790,1741188633121,-10335.95,0.00011092,2]
[355462792,1741188633130,-1115.89,0.00011092,2]
[355462794,1741188633141,-929.14,0.00011092,2]
[355462796,1741188633150,-500.0,0.00011092,2]
[355462799,1741188633161,-1525.52,0.00011092,2]
[355462801,1741188633171,-969.71,0.00011092,2]
[355462803,1741188633183,-671.62,0.00011092,2]
[355462805,1741188633192,-500.0,0.00011092,2]
[355462806,1741188633202,-808.15,0.00011092,2]
[355462808,1741188633212,-606.8,0.00011092,2]
[355462810,1741188633221,-786.0,0.00011092,2]
[355462812,1741188633231,-630.01,0.00011092,2]
[355462814,1741188633241,-500.0,0.00011092,2]
[355462816,1741188633251,-972.48,0.00011092,2]
[355462818,1741188633261,-500.0,0.00011092,2]
[355462820,1741188633270,-6913.47,0.00011092,2]
[355462822,1741188633280,-985.05,0.00011092,2]
[355462824,1741188633289,-1257.76,0.00011092,2]
[355462826,1741188633299,-1285.08,0.00011092,2]
[355462828,1741188633308,-500.0,0.00011092,2]
[355462830,1741188633318,-929.0,0.00011092,2]
[355462832,1741188633327,-1326.5,0.00011092,2]
[355462834,1741188633338,-1594.8,0.00011092,2]
[355462836,1741188633348,-1711.5,0.00011092,2]
[355462838,1741188633359,-780.72,0.00011092,2]
[355462840,1741188633369,-546.35,0.00011092,2]
[355462842,1741188633379,-697.65,0.00011092,2]
[355462843,1741188633395,-2482.94,0.00011092,2]
[355462845,1741188633405,-500.0,0.00011092,2]
[355462847,1741188633415,-775.26,0.00011092,2]
[355462848,1741188633425,-1449.98,0.00011092,2]
[355462849,1741188633442,-1648.37,0.00011092,2]
[355462850,1741188633452,-866.2,0.00011092,2]
[355462851,1741188633462,-5038.21,0.00011092,2]
[355462852,1741188633472,-762.0,0.00011092,2]
[355462853,1741188633482,-1215.97,0.00011092,2]
[355462854,1741188633492,-703.73,0.00011092,2]
[355462855,1741188633502,-4870.95441427,0.00011092,2]
[355462856,1741188633518,-998.53558573,0.00011092,2]
[355462857,1741188633528,-6122.94,0.00011092,2]
[355462858,1741188633538,-2009.17,0.00011092,2]
[355462859,1741188633548,-987.07,0.00011092,2]
[355462860,1741188633558,-1764.67,0.00011092,2]
[355462861,1741188633569,-1102.27,0.00011092,2]
[355462862,1741188633578,-500.0,0.00011092,2]
[355462863,1741188633588,-1517.73,0.00011092,2]
[355462864,1741188633598,-1009.09,0.00011092,2]
[355462865,1741188633608,-1399.58,0.00011092,2]
[355462866,1741188633617,-1824.62,0.00011092,2]
[355462867,1741188633627,-5885.94,0.00011092,2]
[355462868,1741188633637,-739.42,0.00011092,2]
[355462869,1741188633647,-667.01,0.00011092,2]
[355462870,1741188633658,-500.0,0.00011092,2]
[355462871,1741188633668,-1330.75,0.00011092,2]
[355462872,1741188633678,-1170.79,0.00011092,2]
[355462873,1741188633694,-500.0,0.00011092,2]
[355462874,1741188633703,-1897.74,0.00011092,2]
[355462875,1741188633713,-1535.83,0.00011092,2]
[355462876,1741188633723,-1274.85,0.00011092,2]
[355462877,1741188633732,-61.99441427,0.00011092,2]
[355462878,1741188633745,-1604.83558573,0.00011092,2]
[355462879,1741188633756,-2241.41,0.00011092,2]
[355462880,1741188633766,-1650.94,0.00011092,2]
[355462881,1741188633776,-500.0,0.00011092,2]
[355462882,1741188633786,-562.41,0.00011092,2]
[355462883,1741188633796,-2094.73,0.00011092,2]
[355462884,1741188633805,-2487.0,0.00011092,2]
[355462885,1741188633815,-2397.67389344,0.00011092,2]
[355462886,1741188633840,-2905.49610656,0.00011092,2]
[355462887,1741188633850,-1363.64,0.00011092,2]
[355462888,1741188633860,-558.13,0.00011092,2]
[355462889,1741188633870,-394.73389344,0.00011092,2]
[355462890,1741188634566,-1893.22610656,0.00011092,2]
[355462891,1741188634578,-500.0,0.00011092,2]
[355462892,1741188634589,-2024.37,0.00011092,2]
[355462893,1741188634600,-1225.79,0.00011092,2]
[355462894,1741188634611,-2218.13844159,0.00011092,2]
[355462895,1741188634624,-325.49155841,0.00011092,2]
[355462896,1741188634635,-3347.42,0.00011092,2]
[355462897,1741188634647,-1033.29,0.00011092,2]
[355462898,1741188634657,-500.0,0.00011092,2]
[355462899,1741188634669,-1568.17,0.00011092,2]
[355462900,1741188634680,-2306.09377559,0.00011092,2]
[355462901,1741188634696,-1248.28622441,0.00011092,2]
[355462902,1741188634707,-1467.6,0.00011092,2]
[355462903,1741188634717,-1532.18,0.00011092,2]
[355462904,1741188634728,-1445.17,0.00011092,2]
[355462905,1741188634740,-261.32186302,0.00011092,2]
[355462906,1741188634753,-1645.11813698,0.00011092,2]
[355462907,1741188634765,-2580.56,0.00011092,2]
[355462908,1741188634776,-2940.58,0.00011092,2]
[355462909,1741188634787,-532.04,0.00011092,2]
[355462910,1741188634798,-1181.71,0.00011092,2]
[355462911,1741188634810,-6033.45,0.00011092,2]
[355462912,1741188634821,-553.08,0.00011092,2]
[355462913,1741188634832,-500.0,0.00011092,2]
[355462914,1741188634842,-1266.4,0.00011092,2]
[355462915,1741188634853,-8828.22,0.00011092,2]
[355462916,1741188634863,-511.94020148,0.00011092,2]
[355462917,1741188634874,-500.0,0.00011092,2]
[355462918,1741188634885,-500.0,0.00011092,2]
[355462919,1741188634896,-2256.12,0.00011092,2]
[355462920,1741188634907,-500.0,0.00011092,2]
[355462921,1741188634918,-500.0,0.00011092,2]
[355462922,1741188634929,-13982.54,0.00011092,2]
[355462923,1741188634942,-500.0,0.00011092,2]
[355462924,1741188634954,-500.0,0.00011092,2]
[355462925,1741188634965,-1019.02,0.00011092,2]
[355462926,1741188634976,-941.48,0.00011092,2]
[355462927,1741188634987,-500.0,0.00011092,2]
[355462928,1741188634999,-590.08,0.00011092,2]
[355462929,1741188635010,-520.80053463,0.00011092,2]
[355462930,1741188635021,-500.0,0.00011092,2]
[355462931,1741188635032,-500.0,0.00011092,2]
[355462932,1741188635043,-254.60631105,0.00011092,2]
[355462933,1741188635054,-977.95,0.00011092,2]
[355462934,1741188635065,-500.0,0.00011092,2]
[355462935,1741188635076,-500.0,0.00011092,2]
[355462936,1741188635087,-863.69,0.00011092,2]
[355462937,1741188635098,-509.96955041,0.00011092,2]
[355462938,1741188635109,-500.0,0.00011092,2]
[355462939,1741188635120,-500.0,0.00011092,2]
[355462940,1741188635131,-376.26163177,0.00011092,2]
[355462941,1741188635142,-1507.08,0.00011092,2]
[355462942,1741188635153,-1346.44,0.00011092,2]
[355462943,1741188635164,-500.0,0.00011093,2]
[355462944,1741188635175,-500.0,0.00011093,2]
[355462945,1741188635188,-500.0,0.00011093,2]
[355462946,1741188635198,-500.0,0.00011093,2]
[355462947,1741188635210,-500.0,0.00011093,2]
[355462948,1741188635222,-500.0,0.00011093,2]
[355462949,1741188635233,-500.0,0.00011093,2]
[355462950,1741188635244,-508.71048289,0.00011093,2]
[355462951,1741188635255,-500.0,0.00011093,2]
[355462952,1741188635266,-500.0,0.00011093,2]
[355462953,1741188635278,-500.0,0.00011093,2]
[355462954,1741188635290,-500.0,0.00011093,2]